Cogmind - Beta 11 @@@ ROGUE MODE // 2022.03.31 @ 15:14:00 Player: Sn@43 Result: Destroyed by X-62 Marksman with Gauss Rifle Performance ------------- Evolutions (2) 1000 Regions Visited (5) 1000 Robots Destroyed (101) 505 Value Destroyed (2502) 2502 Prototype IDs (1) 20 Alien Tech Used (0) 0 Bonus (167) 167 TOTAL SCORE: 5194 Bonus ------- High Alert Combat Kills 8 Follower Combat Kills 159 Cogmind --------- Core Integrity 0/550 Matter 88/300 Energy 85/100 System Corruption 1% Temperature Cool (33) Movement Core (1900) Ox37 Location -8/Materials Parts ------- > --- POWER (1) -------- (None) > --- PROPULSION (3) --- (None) > --- UTILITY (5) ------ Large Storage Unit Huge Storage Unit Improved Signal Interpreter > --- WEAPON (2) ------- Bore Cannon Heavy Flail > --- INVENTORY (25) --- Nuclear Core High-capacity Matter Pod (200) Experimental Sensor Array Improved Trap Extractor (5/6 Blade) Bomb Drone Bay EM Pulse Cannon Datajack Signal Generator Peak State ------------ > --- POWER ------------ Improved Ion Engine > --- PROPULSION ------- Armored Wheel Armored Wheel Armored Wheel > --- UTILITY ---------- Huge Storage Unit Experimental Sensor Array Improved Signal Interpreter Hacking Suite System Shield > --- WEAPON ----------- Autogun Heavy Flail > --- INVENTORY -------- Nuclear Core Large Storage Unit High-capacity Matter Pod Medium Armor Plating Improved Trap Extractor Bomb Drone Bay EM Pulse Cannon Heavy Assault Rifle Bore Cannon Rocket Launcher Datajack Signal Generator [Rating: 36] Favorites ----------- Power Improved Ion Engine Engine Improved Ion Engine Propulsion Armored Wheel Treads Light Treads Leg Aluminum Leg Wheel Armored Wheel Utility Large Storage Unit Device Experimental Sensor Array Storage Large Storage Unit Processor Improved Signal Interpreter Hackware Hacking Suite Protection Hardened Light Armor Plating Weapon Heavy Assault Rifle Energy Gun Small Laser Energy Cannon EM Pulse Cannon Ballistic Gun Heavy Assault Rifle Ballistic Cannon Bore Cannon Launcher Rocket Launcher Impact Weapon Heavy Flail Special Melee Weapon Datajack Build | -11 -10 -10 -9 -9 -8 ------- Run | Scr Mat Min Mat Min Mat Slots Evolved 4 | . . . 2 . 2 Power . | . . . . . . Propulsion 1 | . . . 1 . . Utility 3 | . . . 1 . 2 Weapon . | . . . . . . Parts Attached 124 | 7 20 31 39 6 21 Power 10 | 1 4 1 3 . 1 Engine 10 | 1 4 1 3 . 1 Core . | . . . . . . Reactor . | . . . . . . Propulsion 29 | 2 4 5 16 2 . Treads 3 | . . . 3 . . Leg 1 | . 1 . . . . Wheel 25 | 2 3 5 13 2 . Hover . | . . . . . . Flight . | . . . . . . Utility 29 | 2 6 4 9 . 8 Device 11 | 1 3 2 3 . 2 Storage 6 | 1 2 . 1 . 2 Processor 2 | . 1 . . . 1 Hackware 2 | . . . . . 2 Protection 8 | . . 2 5 . 1 Artifact . | . . . . . . Weapon 56 | 2 6 21 11 4 12 Energy Gun 1 | 1 . . . . . Energy Cannon 1 | . . . . . 1 Ballistic Gun 34 | 1 4 15 8 3 3 Ballistic Cannon 3 | . . . . . 3 Launcher 11 | . 1 5 2 1 2 Special Weapon . | . . . . . . Impact Weapon 4 | . 1 . 1 . 2 Slashing Weapon . | . . . . . . Piercing Weapon . | . . . . . . Special Melee Weapon 2 | . . 1 . . 1 Unidentified Prototypes 1 | . . . . . 1 Parts Lost 24 | . 4 3 7 . 10 Power 3 | . 1 . 1 . 1 Propulsion 8 | . 1 1 3 . 3 Utility 6 | . 1 . 2 . 3 Weapon 7 | . 1 2 1 . 3 Highest Loss Streak 10 | . 2 2 5 . 10 To Critical Strikes . | . . . . . . Average Slot Usage (%) 97 | . 98 96 95 100 98 Engine 11 | . 14 14 11 11 8 Wheel 27 | . 24 25 28 33 26 Device 4 | . 11 . 4 . 6 Storage 11 | . 14 14 11 11 9 Processor 3 | . 1 10 . . 7 Hackware 4 | . . . . . 17 Protection 8 | . . 2 16 22 3 Energy Gun 1 | . 8 . . . . Ballistic Gun 20 | . 19 25 21 22 14 Naked Turns . | . . . . . . Heaviest Build 119 | 11 32 35 46 45 119 Greatest Support 40 | 32 32 32 36 40 36 Greatest Overweight (x) 14 | . 1 3 14 1 4 Average Overweight (x) 1 | . . 1 1 1 1 Largest Inventory Capacity 25 | 8 15 15 15 15 25 Average Capacity 16 | 7 11 15 15 15 23 Most Carried 15 | 3 14 15 15 15 15 Average Carried 12 | 1 6 12 14 14 12 Final Capacity 25 | 8 15 15 15 15 25 Final Carried 15 | 2 10 15 15 15 9 Class Distribution -------------------- 42% | Mutant 34% | Scavenger-Mutant 22% | Hacker-Mutant Dominant Class ---------------- Mutant | -10/Materials Scavenger-Mutant | -10/Mines Scavenger-Mutant | -9/Materials Mutant | -9/Mines Hacker-Mutant | -8/Materials Resources | -11 -10 -10 -9 -9 -8 ----------- Run | Scr Mat Min Mat Min Mat Matter Collected 2760 | 274 370 610 967 214 325 Remotely 192 | 179 13 . . . . Salvage Created 3038 | 73 465 721 1174 230 375 Parts 214 | 1 36 44 102 11 20 Haulers Intercepted 2 | . . . 2 . . Recyclers Shooed 3 | . . 1 1 1 . Parts Field Recycled . | . . . . . . Retrieved Matter . | . . . . . . Parts Self-Destructed . | . . . . . . Prevented . | . . . . . . Kills | -11 -10 -10 -9 -9 -8 ------- Run | Scr Mat Min Mat Min Mat Combat Hostiles Destroyed 67 | . 10 22 24 4 7 Guns 47 | . 9 15 18 3 2 Cannons 2 | . . . . . 2 AOE 17 | . 1 7 6 1 2 Classes Destroyed 12 | 1 5 4 1 . 1 Worker 9 | . 2 1 6 . . Builder 8 | . . 1 5 . 2 Tunneler 1 | . 1 . . . . Hauler 2 | . . . 2 . . Recycler 5 | 1 . 2 . 2 . Mechanic 1 | . . 1 . . . Operator 3 | . 1 . 1 . 1 Watcher 5 | . 2 . 2 . 1 Swarmer 16 | . . 12 2 2 . Grunt 41 | . 10 8 17 2 4 Sentry 9 | . . 2 5 . 2 Heavy 1 | . . . . . 1 Best Kill Streak 9 | 1 3 6 9 2 4 Combat Bots Only 5 | . 2 5 5 2 4 Max Kills in Single Turn 4 | 1 1 4 3 1 2 Gunslinging . | . . . . . . Exploded 2 | . 1 2 2 1 2 Melee . | . . . . . . Uniques/NPCs Destroyed . | . . . . . . Combat | -11 -10 -10 -9 -9 -8 -------- Run | Scr Mat Min Mat Min Mat Damage Taken 4375 | . 489 679 1234 117 1856 Core 913 | . 50 119 165 18 561 Absorbed by Shields . | . . . . . . Core Remaining (%) 62 | 100 . 32 . 54 . Volleys Fired 253 | 4 52 51 95 17 34 Largest 2 | 2 2 2 2 2 2 Hottest 80 | 60 60 46 46 46 80 Shots Fired 463 | 8 101 96 181 26 51 Gun 422 | 8 98 89 173 24 30 Cannon 18 | . . . . . 18 Launcher 23 | . 3 7 8 2 3 Special . | . . . . . . Kinetic 391 | 4 62 89 173 24 39 Thermal 40 | 4 36 . . . . Explosive 23 | . 3 7 8 2 3 Electromagnetic 9 | . . . . . 9 Robot Hit Streak 14 | 2 12 14 12 11 10 Robot Miss Streak 6 | 2 4 4 3 6 2 Penetration Max . | . . . . . . Secondary Targets . | . . . . . . Shots Hit Robots 309 | 4 64 65 127 13 36 Core Hits 166 | 2 31 43 64 9 17 Critical Kills 1 | . . . . . 1 Critical Parts Destroyed . | . . . . . . Critical Strikes 1 | . . . . . 1 Destroy 1 | . . . . . 1 Melee Attacks 20 | . 5 . 1 . 14 Impact 20 | . 5 . 1 . 14 Slashing . | . . . . . . Piercing . | . . . . . . Sneak Attacks . | . . . . . . Combat Hostiles . | . . . . . . Follow-up Attacks . | . . . . . . Damage Inflicted 6370 | 36 786 1434 2491 293 1330 Guns 3817 | 36 665 789 1832 203 292 Cannons 325 | . . . . . 325 Explosions 2114 | . 121 645 659 90 599 Melee 114 | . . . . . 114 Ramming . | . . . . . . Kinetic 3654 | 6 404 789 1832 203 420 Thermal 291 | 30 261 . . . . Explosive 2114 | . 121 645 659 90 599 Electromagnetic 197 | . . . . . 197 Impact 114 | . . . . . 114 Slashing . | . . . . . . Piercing . | . . . . . . Highest Corruption 6 | . 6 6 . . 1 Average Corruption 5 | . 5 6 . . 1 Corruption Purged . | . . . . . . Corruption Blocked . | . . . . . . Effects 47 | . 20 27 . . . Message Errors 8 | . 4 4 . . . Matter Fused 9 | . 6 3 . . . Heat Flow Errors 8 | . 3 5 . . . Energy Discharges 2 | . . 2 . . . Parts Rejected 1 | . . 1 . . . Data Loss (minor) 8 | . 4 4 . . . Data Loss (major) 5 | . 2 3 . . . Misfires 4 | . 1 3 . . . Alerts 2 | . . 2 . . . Overload Shots . | . . . . . . Overflow Damage 13 | . . . 12 . 1 Projectiles . | . . . . . . Explosions 12 | . . . 12 . . Melee 1 | . . . . . 1 Knockbacks . | . . . . . . Impact . | . . . . . . Kinetic . | . . . . . . Secondary . | . . . . . . Self-Inflicted Damage 132 | . . 17 39 . 76 Shots 6 | . . 1 2 . 3 Rammed . | . . . . . . Targets Rammed . | . . . . . . Kicked . | . . . . . . Crushed . | . . . . . . Highest Temperature 246 | 20 246 198 117 20 108 Average Temperature 35 | 15 54 37 27 5 29 Received Heat Transfer 1572 | . 282 219 486 18 567 Siege Activations . | . . . . . . Robots Corrupted 1 | . . . . . 1 Combat Hostiles 1 | . . . . . 1 Parts Fried 2 | . . . . . 2 Impact Corruptions 1 | . . . . . 1 Robots Melted . | . . . . . . Combat Hostiles . | . . . . . . Parts Melted 1 | . 1 . . . . Heat Transferred 650 | 75 575 . . . . Parts Sabotaged . | . . . . . . Parts Stolen . | . . . . . . Parts Stripped . | . . . . . . Power Chain Reactions . | . . . . . . Missiles Intercepted . | . . . . . . Alert | -11 -10 -10 -9 -9 -8 ------- Run | Scr Mat Min Mat Min Mat Peak Influence 489 | 5 217 383 489 240 224 Initial 148 | . 3 . 148 73 . Average 145 | 1 70 293 225 86 51 Maximum Alert Level 2 | . 1 1 2 1 1 Low Security (%) 64 | 100 93 13 45 88 85 Level 1 34 | . 6 86 53 11 14 Level 2 . | . . . 1 . . Level 3 . | . . . . . . Level 4 . | . . . . . . Level 5 . | . . . . . . High Security . | . . . . . . Max Security . | . . . . . . Squads Dispatched 13 | . 3 1 4 . 5 Investigation 2 | . 1 . 1 . . Extermination . | . . . . . . Reinforcement 10 | . 2 . 3 . 5 Assault 1 | . . 1 . . . Garrison . | . . . . . . Intercept . | . . . . . . Searches Triggered . | . . . . . . Construction Impeded 1 | . . . . . 1 Haulers Reinforced . | . . . . . . Active Scanning Responses . | . . . . . . Cargo Convoy Interrupts . | . . . . . . Stealth | -11 -10 -10 -9 -9 -8 --------- Run | Scr Mat Min Mat Min Mat Distress Signals 8 | . 2 . 4 . 2 Communications Jammed . | . . . . . . Distress Signals . | . . . . . . Times Spotted 112 | . 20 22 40 5 25 Peak Tracking Total 10 | . 3 4 7 3 10 Tactical Retreats 2 | . 1 . . . 1 Traps | -11 -10 -10 -9 -9 -8 ------- Run | Scr Mat Min Mat Min Mat Traps Triggered 6 | . 4 . 2 . . Indirectly . | . . . . . . Trap Hack Attempts 68 | . . 68 . . . Triggered . | . . . . . . Disarmed 1 | . . 1 . . . Reprogrammed 1 | . . 1 . . . Reused . | . . . . . . Traps Extracted 1 | . . 1 . . . Installed . | . . . . . . Triggered . | . . . . . . Most Traps Carried 5 | . . 5 5 5 5 Machines | -11 -10 -10 -9 -9 -8 ---------- Run | Scr Mat Min Mat Min Mat Machines Disabled 6 | . . . 3 2 1 Max in Single Turn 2 | . . . 1 2 1 Machines Sabotaged . | . . . . . . Garrisons Compromised . | . . . . . . Overloaded Fab Kills . | . . . . . . Hacking | -11 -10 -10 -9 -9 -8 --------- Run | Scr Mat Min Mat Min Mat Machines Accessed 19 | . 5 1 7 2 4 Terminals 17 | . 5 . 7 1 4 Fabricators . | . . . . . . Repair Stations . | . . . . . . Recycling Units . | . . . . . . Scanalyzers . | . . . . . . Garrison Access . | . . . . . . Total Hacks 60 | . 16 1 23 4 16 Successful 32 | . 10 1 11 3 7 Failed 28 | . 6 . 12 1 9 Catastrophic 5 | . . . 3 . 2 Database Lockouts . | . . . . . . Manual 58 | . 16 . 23 3 16 Terminals 58 | . 16 . 23 3 16 Fabricators . | . . . . . . Repair Stations . | . . . . . . Recycling Units . | . . . . . . Scanalyzers . | . . . . . . Garrison Access . | . . . . . . Terminal Hacks 11 | . 3 1 4 2 1 Robot Analysis 1 | . 1 . . . . Open Door 2 | . . 1 . 1 . Garrison Index 2 | . . . 1 . 1 Unreport Threat 6 | . 2 . 3 1 . Fabricator Hacks . | . . . . . . Repair Station Hacks . | . . . . . . Recycling Unit Hacks . | . . . . . . Scanalyzer . | . . . . . . Garrison Access Hacks . | . . . . . . Unauthorized Hacks 19 | . 5 . 7 1 6 Terminals 19 | . 5 . 7 1 6 Track 1 | . . . . . 1 Assimilate 1 | . . . . . 1 Botnet 16 | . 5 . 7 1 3 Operators 1 | . . . . . 1 Fabricators . | . . . . . . Repair Stations . | . . . . . . Recycling Units . | . . . . . . Scanalyzers . | . . . . . . Garrison Access . | . . . . . . Data Cores Recovered . | . . . . . . Used . | . . . . . . Hacking Detections 13 | . 3 . 6 1 3 Full Trace Events 1 | . . . 1 . . Feedback Events . | . . . . . . Feedback Blocked . | . . . . . . Robot Schematics Acquired . | . . . . . . Robots Built . | . . . . . . Authchips . | . . . . . . Time . | . . . . . . Total Robot Build Rating . | . . . . . . Part Schematics Acquired . | . . . . . . Parts Built . | . . . . . . Authchips . | . . . . . . Time . | . . . . . . Total Part Build Rating . | . . . . . . Parts Repaired . | . . . . . . Time . | . . . . . . Parts Recycled . | . . . . . . Recycled Matter . | . . . . . . Retrieved Matter . | . . . . . . Retrieved Components . | . . . . . . Parts Scanalyzed . | . . . . . . Part Schematics Acquired . | . . . . . . Parts Damaged . | . . . . . . Bothacking | -11 -10 -10 -9 -9 -8 ------------ Run | Scr Mat Min Mat Min Mat Used RIF Installer . | . . . . . . Robots Hacked . | . . . . . . Non-combat . | . . . . . . Combat . | . . . . . . Robot Hacks Applied . | . . . . . . Relay Couplers Released . | . . . . . . Fabnet Peak Effective % . | . . . . . . Robots Rewired . | . . . . . . Allies Hacked . | . . . . . . Hacks Repelled . | . . . . . . Allies | -11 -10 -10 -9 -9 -8 -------- Run | Scr Mat Min Mat Min Mat Total Allies 4 | . . 1 . 3 . Largest Group 3 | . . 1 1 3 3 Highest-Rated Group 40 | . . 31 31 40 40 Highest-Rated Ally 31 | . . 31 31 16 16 Total Orders . | . . . . . . Ally Attacks 33 | . . . 3 . 30 Total Damage 395 | . . . 63 . 332 Kills 7 | . . . 1 . 6 Allies Corrupted . | . . . . . . Allies Melted . | . . . . . . Intel | -11 -10 -10 -9 -9 -8 ------- Run | Scr Mat Min Mat Min Mat Robot Analysis Total 1 | . 1 . . . . Derelict Logs Recovered 2 | . . 1 . 1 . Drone Launches . | . . . . . . Drone Recoveries . | . . . . . . Exploration | -11 -10 -10 -9 -9 -8 ------------- Run | Scr Mat Min Mat Min Mat Turns Passed 6318 | 89 1063 1035 1682 938 1511 Spaces Moved 3922 | 66 776 759 1149 776 396 Core 3 | 1 . . 2 . . Treads 14 | . . . 14 . . Legs . | . . . . . . Wheels 3905 | 65 776 759 1133 776 396 Hover . | . . . . . . Flight . | . . . . . . Fastest Speed 50 | 50 80 95 95 105 105 Average Speed 102 | 99 96 99 102 105 112 Slowest Speed 750 | 100 115 130 750 108 150 Overloaded Moves . | . . . . . . Propulsion Burnouts . | . . . . . . Robots Hopped . | . . . . . . Cave-ins Triggered . | . . . . . . Exploration Rate (%) 64 | 4 97 99 63 96 27 Regions Visited 5 Branch Regions 2 Pre-discovered Areas 1 | . . . . 1 . Known Exits Taken . | . . . . . . Unknown Exits Taken 5 | 1 1 1 1 1 . Scrap Searched 2 | . . 1 . 1 . Spaces Dug 10 | . . . 1 . 9 Terrain Destroyed 217 | . 33 81 63 13 27 Melee 10 | . . . 1 . 9 Projectile 1 | . . . . . 1 AOE 206 | . 33 81 62 13 17 Terrain Rammed . | . . . . . . Walls Destroyed . | . . . . . . Machines Disabled . | . . . . . . Actions | -11 -10 -10 -9 -9 -8 --------- Run | Scr Mat Min Mat Min Mat Total 5743 | 79 988 947 1468 874 1387 Wait 1244 | . 101 14 148 66 915 Move 3917 | 65 775 758 1148 775 396 Hop . | . . . . . . Pick Up 47 | 3 17 12 11 3 1 Fast Attach 26 | 6 5 2 11 2 . Attach 27 | 1 4 6 6 1 9 Detach 4 | . . 2 . . 2 Swap 71 | . 11 23 22 3 12 Drop 66 | . 18 11 26 7 4 Fire 253 | 4 52 51 95 17 34 Melee 20 | . 5 . 1 . 14 Ram . | . . . . . . Kick . | . . . . . . Crush . | . . . . . . Escape Stasis . | . . . . . . Rewire . | . . . . . . Trap 68 | . . 68 . . . Miscellaneous . | . . . . . . Route ------- -11/Scrapyard -10/Materials (discovered 5 exits: *Mat x3 / *Min x2) -10/Mines (discovered 3 exits: *Mat x2 / [*Exi]) -9/Materials (discovered 5 exits: *Mat x2 / *Min / [*Sto x2]) -9/Mines (discovered 3 exits: *Mat x2 / [*Zio]) -8/Materials History --------- Turn | Location | Event 22 | -11/Scrapyard | Discovered new exit (range 16) 90 | -11/Scrapyard | Entered Materials 300 | -10/Materials | Build established: Mutant 327 | -10/Materials | Discovered new exit (range 14) 456 | -10/Materials | Discovered new exit (range 13) 780 | -10/Materials | Discovered new exit (range 15) 852 | -10/Materials | Discovered new exit (range 10) 1033 | -10/Materials | Discovered new exit (range 12) 1153 | -10/Materials | Entered Mines 1218 | -10/Mines | Found a hidden stash of uninstalled traps 1364 | -10/Mines | Discovered new exit (range 17) 1549 | -10/Mines | Deemed a non-threat by the Exiles lab entrance 1549 | -10/Mines | Discovered new exit (range 5) 1602 | -10/Mines | Core integrity fell below 50% 1642 | -10/Mines | Learned Materials security intel 1655 | -10/Mines | Met a Derelict testing a Signal Generator 1659 | -10/Mines | Found Signal Generator 1765 | -10/Mines | Discovered new exit (range 10) 1767 | -10/Mines | Received a Rocket Launcher from a helpful Derelict 1791 | -10/Mines | Build established: Scavenger-Mutant 1860 | -10/Mines | Met a Derelict who couldn't figure out how to use a Trap Extractor 2188 | -10/Mines | Entered Materials 2188 | -9/Materials | Accompanied by 1 ally 2188 | -9/Materials | Evolved 2 slots: Propulsion x1, Utility x1 2632 | -9/Materials | Discovered new exit (range 8) 2892 | -9/Materials | Lost 5 parts (1p1n2u1w) 3057 | -9/Materials | Discovered new exit (range 13) 3253 | -9/Materials | Discovered new exit (range 16) 3279 | -9/Materials | Discovered new exit (range 15) 3532 | -9/Materials | Discovered new exit (range 8) 3830 | -9/Materials | Build established: Mutant 3870 | -9/Materials | Entered Mines 3922 | -9/Mines | Learned location of Zion (-7) 3987 | -9/Mines | Found a damaged Exp. Sensor Array with a note attached 3990 | -9/Mines | Found Prototype Device 4011 | -9/Mines | A Derelict revealed a hidden shortcut to a safe place 4041 | -9/Mines | A weapon hastily lodged in a ceiling crevice suddenly fell to the ground 4401 | -9/Mines | Found the Drone Emporium 4406 | -9/Mines | Found Prototype Device 4446 | -9/Mines | Discovered new exit (range 8) 4466 | -9/Mines | Discovered new exit (range 5) 4472 | -9/Mines | Assisted by bots powering up and referring to "LRC-V3" 4808 | -9/Mines | Entered Materials 4808 | -8/Materials | Accompanied by 3 allies 4808 | -8/Materials | Evolved 2 slots: Utility x2 4820 | -8/Materials | Identified Exp. Sensor Array 5118 | -8/Materials | Build established: Hacker-Mutant 6297 | -8/Materials | Core integrity fell below 50% 6313 | -8/Materials | Core integrity fell below 20% 6319 | -8/Materials | Destroyed by X-62 Marksman with Gauss Rifle Last Messages --------------- 06306_ Penetrated by Slug. 06306_ Arm. Wheel destroyed. 06307_ Penetrated by Slug. 06307_ R-06 Scavenger destroyed. 06307_ Hacking Suite destroyed. 06309_ Penetrated by Slug. 06309_ Critical hit (Burn: +37). 06310_ Penetrated by Slug. 06310_ R-06 Scavenger collects Aluminum Leg. 06310_ U-05 Engineer builds a Wall. 06312_ U-05 Engineer destroyed. 06312_ Penetrated by Slug. 06312_ Rocket Launcher destroyed. 06313_ Penetrated by Slug. 06313_ R-06 Scavenger destroyed. 06314_ ALERT: Construction progress impeded, dispatching reinforcements to local area. 06315_ HV Slug penetrates Wall. 06315_ Slug penetrates G-47 Trooper. 06319_ Penetrated by Slug. Map ----- +----------------------------------------------------+ | ???????????????????????????????????????????????##? | | ?????????????????????????????????????????????????? | | ?????????????????????????????????????????????????? | | ?????????????????????????????????????????????????? | | ?????????????????????????????????????????????????? | | ?????????????????????????????????????????????????? | | ?????????????????????????????????????????????????? | | ?????????????????????????????????????????????????? | | ?????????????????????????????????????????????????? | | ?????????????????????????????????????????????????? | | ??????????????????????? ???????????????????????? | | ??????????????????????# ???????????????????????? | | ??????????????????????# ???????????????????????? | | ??????????????????????# ???????????????????????? | | ??????????????????????# ???????????????????????? | | ??????????????????????# ??????????????########?? | | ??????????????????????# ??????????????#[[!!!!#?? | | ??????????????????????# #?????????????#[[!!!!#?? | | ?????????????????????## ##????????????# #?? | | ??????????????####+### ##### ######## ### | | ??????????????? % % % | | ????????????????? =% | | ??????????????????? =%x | | ????????????????????# %g!%###+#########"#### ## | | ????????????????????## =g!#### [#=##??# #? | | ????????????????????# x=@!%%# """ |%###??## #? | | ??????????????????# ==%!%#%""" #????#" #? | | ??????????????????### =*%%#% "" #????## #? | | ??????????????? + !%#% #?????# #? | | ?????????????? ### =# ""#?????# ## | | ?????????????? ????#! ! !# % Y"#?????# ## | | ????????????? ??????# # ! %== "#?????# #" | | ????????????????????# ]! # %= #?????# ## | | ????????????????????# ]! ## ###?????# ## | | ????????????????????########## #??????# ## | | ??????????????????????????????########??????# ## | | ????????????????????????????????????????????# ## | | ????????????????????????????????????????????# ## | | ????????????????????????????????????????????# ## | | ????????????????????????????????????????????# ## | | ????????????????????????????????????????????# #? | | ???????????????????????????????????????????? ? | | ???????????????????????????????????????????? ?? | | ???????????????????????????????????????????? ?? | | ????????????????????????????????????????????? ?? | | ?????o???????????????????????????????????????????? | | ?????????????????????????????????????????????????? | | ?????????????????????????????????????????????????? | | ?????????????????????????????????????????????????? | | ?????????????????????????????????????????????????? | +----------------------------------------------------+ Best States ------------- Heat Dissipation 35 Energy Generation 12 Energy Capacity 265 Matter Stores 300 Matter Capacity 300 Sight Range 18 Robot Scan Range 20 Terrain Scan Density 10 Armor Coverage 375 Evasion (%) 44 Recoil Reduction 1 Offensive Hacking 10 Defensive Hacking 10 Trap Extractor Capacity 6 Item Schematics ----------------- None Robot Schematics ------------------ None Fabricated ------------ Nothing Alien Tech Used ----------------- None Achievements -------------- None Challenges ------------ None Game ------ Seed LauncherSignalFemtoactuators Manual? 0 Play Time 01:07:36 Cumulative 49.1 hours Start 2022.03.31 @ 13:24:45 End 2022.03.31 @ 15:14:00 Sessions 1 Manual Loads 0 Difficulty Rogue Special Mode None Game No. 82 Rogue 54 Adventurer 28 Explorer 0 Win Type - Total 0 Types 0/0/0/0/0/0/0/0/0 Lore% 23 Gallery% 27 Achievement% 30 Wizard Run 0 Options --------- ASCII 0 Keyboard 0 Movement Mouse Keybinds 0 Fullscreen 1 Font 24/Terminus Map View 84x54 Tactical HUD 1 Map Filters NONE Filters NONE Steam 1 RUN: 2c5aeb8e-b952-400d-bb17-f6f1337d6fb2